bitfinex-derivatives/quotes_BTCF0:USTF0_20250822
["timestamp","ask_amount","ask_price","bid_price","bid_amount"]
[1755882227433,1.56581,116510.0,116500.0,2.35135408]
[1755882227930,0.4466106,116540.0,116500.0,2.77610981]
[1755882228135,0.06555,116530.0,116520.0,0.89817928]
[1755882228335,0.06555,116530.0,116520.0,2.09905928]
[1755882228536,0.06555,116530.0,116520.0,2.34905928]
[1755882229034,0.06555,116530.0,116520.0,1.94371265]
[1755882229226,0.06555,116530.0,116520.0,2.75440591]
[1755882229934,0.06855,116530.0,116520.0,2.75440591]
[1755882230934,0.07155,116530.0,116520.0,2.75440591]
[1755882231637,0.07155,116530.0,116520.0,1.97441519]
[1755882231837,0.07155,116530.0,116520.0,2.78510845]
[1755882232224,0.07155,116530.0,116520.0,2.7388965]
[1755882232834,0.16641,116530.0,116520.0,2.7388965]
[1755882233032,0.07155,116530.0,116520.0,2.78510845]
[1755882233233,0.07155,116530.0,116520.0,2.7388965]
[1755882233434,0.16641,116530.0,116520.0,2.7388965]
[1755882233640,0.07155,116530.0,116520.0,2.78510845]
[1755882234238,0.07155,116530.0,116520.0,2.70819396]
[1755882237734,0.006,116530.0,116520.0,2.70819396]
[1755882238926,0.003,116530.0,116520.0,2.71019396]
[1755882239133,0.06855,116530.0,116520.0,2.71019396]
[1755882239832,0.06855,116530.0,116520.0,1.87011396]
[1755882240140,0.41828,116530.0,116520.0,2.71123396]
[1755882240733,0.41828,116530.0,116520.0,2.70923396]
[1755882240936,0.41828,116530.0,116520.0,2.71123396]
[1755882241132,0.41828,116530.0,116520.0,1.21876733]
[1755882241335,0.41828,116530.0,116520.0,2.05512733]
[1755882242244,0.41828,116530.0,116520.0,1.21876733]
[1755882242439,0.41828,116530.0,116520.0,1.56288]
[1755882242741,0.41828,116530.0,116520.0,2.05404733]
[1755882244241,0.23067,116530.0,116520.0,1.6487007]
[1755882244548,0.41828,116530.0,116520.0,2.45739396]
[1755882245138,0.41828,116530.0,116520.0,2.45639396]
[1755882245544,0.41828,116530.0,116520.0,2.45839396]
[1755882245742,0.5040934,116530.0,116520.0,2.05304733]
[1755882246946,0.5040934,116530.0,116520.0,2.04904733]
[1755882247149,0.5040934,116530.0,116520.0,2.05104733]
[1755882247353,0.5040934,116530.0,116520.0,2.08174987]
[1755882247743,0.5040934,116530.0,116520.0,1.24646987]
[1755882247949,0.5040934,116530.0,116520.0,2.05184733]
[1755882248345,0.5040934,116530.0,116520.0,1.24646987]
[1755882248649,0.5040934,116530.0,116520.0,2.08178987]
[1755882249042,0.41828,116530.0,116520.0,2.08178987]
[1755882249848,0.18626,116530.0,116520.0,2.08178987]
[1755882250049,0.06555,116530.0,116520.0,2.4871365]
[1755882250254,0.06555,116530.0,116520.0,2.53334845]
[1755882250448,1.79098556,116550.0,116540.0,0.085806]
[1755882250755,1.79098556,116550.0,116540.0,1.21275263]
[1755882251146,1.85653556,116550.0,116540.0,1.21275263]
[1755882251750,1.85853556,116550.0,116540.0,1.21275263]
[1755882252854,2.10853556,116550.0,116540.0,2.04759263]
[1755882253355,2.10753556,116550.0,116540.0,2.05706654]
[1755882253654,2.10653556,116550.0,116540.0,2.05706654]
[1755882253854,1.85653556,116550.0,116540.0,1.65071991]
[1755882254064,1.85653556,116550.0,116540.0,2.05706654]
[1755882256245,1.85653556,116550.0,116540.0,2.08776908]
[1755882256447,1.62504096,116550.0,116540.0,2.08776908]
[1755882256642,1.77797096,116550.0,116540.0,2.08776908]
[1755882257355,1.86376956,116550.0,116540.0,2.08776908]
[1755882258150,1.62504096,116550.0,116540.0,2.08776908]
[1755882258353,1.77797096,116550.0,116540.0,2.08776908]
[1755882258657,1.77797096,116550.0,116540.0,2.13398103]
[1755882259052,1.62504096,116550.0,116540.0,2.13398103]
[1755882259359,1.77797096,116550.0,116540.0,2.13398103]
[1755882259855,1.77797096,116550.0,116540.0,1.7286344]
[1755882260051,1.77797096,116550.0,116540.0,2.13398103]
[1755882260448,1.77797096,116550.0,116540.0,2.10327849]
[1755882261257,1.77797096,116550.0,116540.0,2.13404292]
[1755882262556,1.86376956,116550.0,116540.0,2.13404292]
[1755882262953,1.77797096,116550.0,116540.0,1.72869629]
[1755882263253,1.77797096,116550.0,116540.0,2.13404292]
[1755882263448,1.7604,116550.0,116540.0,2.13404292]
[1755882263649,1.7604,116550.0,116540.0,1.72869629]
[1755882264045,1.7604,116550.0,116540.0,2.13404292]
[1755882264249,1.56555,116550.0,116540.0,2.13404292]
[1755882264651,1.56555,116550.0,116540.0,2.38404292]
[1755882264853,0.19093,116550.0,116540.0,2.38404292]
[1755882265159,0.09206,116550.0,116540.0,1.97869629]
[1755882265354,0.19093,116550.0,116540.0,2.38404292]
[1755882265659,0.34386,116550.0,116540.0,2.38404292]
[1755882266159,0.19093,116550.0,116540.0,2.38404292]
[1755882266359,0.34386,116550.0,116540.0,2.38404292]
[1755882266750,0.34386,116550.0,116540.0,1.97869629]
[1755882266958,0.43027,116550.0,116540.0,1.97869629]
[1755882267158,0.43027,116550.0,116540.0,2.38404292]
[1755882267363,0.27734,116550.0,116540.0,2.33783097]
[1755882267562,0.43027,116550.0,116540.0,2.33783097]
[1755882267963,0.43027,116550.0,116540.0,2.33779436]
[1755882268167,0.43027,116550.0,116540.0,2.33779246]
[1755882269265,0.43027,116550.0,116540.0,1.93244459]
[1755882269764,0.43027,116550.0,116540.0,2.33779122]
[1755882269963,0.43027,116550.0,116540.0,2.08779122]
[1755882273161,0.43027,116550.0,116540.0,1.68244459]
[1755882273358,0.43027,116550.0,116540.0,2.08779122]
[1755882273561,0.43027,116550.0,116540.0,0.84760459]
[1755882273765,0.43027,116550.0,116540.0,1.60063859]
[1755882273967,0.43027,116550.0,116540.0,2.00598522]
[1755882274165,0.43027,116550.0,116540.0,2.06106654]
[1755882274470,0.43027,116550.0,116540.0,1.97526054]
[1755882274657,0.68027,116550.0,116540.0,1.97782054]
[1755882274858,0.68027,116550.0,116540.0,1.13642054]
[1755882275166,0.68027,116550.0,116540.0,1.57247391]
[1755882275664,0.68027,116550.0,116540.0,1.96934663]
[1755882276468,0.68027,116550.0,116540.0,1.12794663]
[1755882276660,0.68027,116550.0,116540.0,1.96974663]
[1755882276964,0.68027,116550.0,116540.0,1.5644]
[1755882277269,0.68027,116550.0,116540.0,2.00111131]
[1755882278368,0.68027,116550.0,116540.0,1.24447731]
[1755882278571,0.68027,116550.0,116540.0,1.68117068]
[1755882278770,0.68027,116550.0,116540.0,2.08651731]
[1755882279467,0.68027,116550.0,116540.0,1.68117068]
[1755882279670,0.68027,116550.0,116540.0,2.08651731]
[1755882281569,0.44093,116550.0,116540.0,2.08651731]
[1755882281871,0.22937636,116570.0,116560.0,0.0857913]
[1755882282171,0.02651,116570.0,116560.0,2.45972456]
[1755882282368,0.84164,116590.0,116570.0,0.0857839]
[1755882282369,0.43191,116580.0,116570.0,0.0857839]
[1755882282568,0.43191,116580.0,116570.0,0.85193053]
[1755882283173,0.43191,116580.0,116570.0,0.91978332]
[1755882283366,0.5176865,116580.0,116570.0,0.91978332]
[1755882283568,0.5216865,116580.0,116570.0,0.91978332]
[1755882283872,0.5216865,116580.0,116570.0,0.51443669]
[1755882284071,0.5216865,116580.0,116570.0,0.91978332]
[1755882284767,0.5206865,116580.0,116570.0,0.91978332]
[1755882285072,0.5206865,116580.0,116570.0,0.83399942]
[1755882285668,0.5226865,116580.0,116570.0,0.83399942]
[1755882286572,0.5226865,116580.0,116570.0,0.92834202]
[1755882287278,0.5226865,116580.0,116570.0,0.52299539]
[1755882287577,0.5226865,116580.0,116570.0,0.92834202]
[1755882288573,0.28398,116580.0,116570.0,0.92834202]
[1755882288772,0.42942,116580.0,116570.0,0.92834202]
[1755882288973,0.28398,116580.0,116570.0,0.92834202]
[1755882289170,0.5151965,116580.0,116570.0,0.92834202]
[1755882289571,0.42942,116580.0,116570.0,0.92834202]
[1755882289973,0.5151965,116580.0,116570.0,0.92834202]
[1755882290380,2.0151965,116580.0,116570.0,0.92834202]
[1755882292280,2.0151965,116580.0,116570.0,0.52299539]
[1755882292480,2.0151965,116580.0,116570.0,0.92834202]
[1755882293286,1.92942,116580.0,116570.0,0.92834202]
[1755882294082,2.0151965,116580.0,116570.0,0.52299539]
[1755882294474,2.0151965,116580.0,116570.0,0.92834202]
[1755882294981,2.0151965,116580.0,116570.0,0.52299539]
[1755882295173,2.0151965,116580.0,116570.0,0.92834202]
[1755882295376,2.0151965,116580.0,116570.0,0.52299539]
[1755882295580,2.0151965,116580.0,116570.0,0.92834202]
[1755882297080,2.0151965,116580.0,116570.0,0.52299539]
[1755882297279,2.0151965,116580.0,116570.0,0.92834202]
[1755882299479,2.0151965,116580.0,116570.0,0.52299539]
[1755882299679,2.0151965,116580.0,116570.0,0.92834202]
[1755882300183,2.0151965,116580.0,116570.0,0.43721149]
[1755882300386,2.0151965,116580.0,116570.0,0.52299539]
[1755882300686,2.0151965,116580.0,116570.0,0.92834202]
[1755882301285,2.0151965,116580.0,116570.0,0.52299539]
[1755882301486,2.0151965,116580.0,116570.0,0.92834202]
[1755882301977,2.8584365,116580.0,116570.0,0.92834202]
[1755882302273,2.0151965,116580.0,116570.0,1.68519812]
[1755882302477,2.0151965,116580.0,116570.0,0.92834202]
[1755882302787,2.0151965,116580.0,116570.0,0.52299539]
[1755882302975,2.0151965,116580.0,116570.0,0.92834202]
[1755882303175,2.0151965,116580.0,116570.0,0.52299539]
[1755882303384,2.0151965,116580.0,116570.0,0.92834202]
[1755882303687,2.0151965,116580.0,116570.0,0.52299539]
[1755882303985,2.0151965,116580.0,116570.0,0.92834202]
[1755882304178,2.0151965,116580.0,116570.0,0.55376315]
[1755882304580,2.0151965,116580.0,116570.0,0.95910978]
[1755882305682,0.24037,116580.0,116570.0,0.95910978]
[1755882305984,0.42465,116580.0,116570.0,0.95910978]
[1755882306381,0.42465,116580.0,116570.0,1.39724315]
[1755882306575,0.42465,116580.0,116570.0,1.80242978]
[1755882307480,0.5104265,116580.0,116570.0,1.80242978]
[1755882308486,0.5104265,116580.0,116570.0,1.39708315]
[1755882308683,0.5104265,116580.0,116570.0,1.80242978]
[1755882310487,0.42465,116580.0,116570.0,1.80242978]
[1755882310988,0.42465,116580.0,116570.0,1.80218978]
[1755882311175,0.42465,116580.0,116570.0,1.84840173]
[1755882311690,0.5104265,116580.0,116570.0,1.84840173]
[1755882312183,0.42465,116580.0,116570.0,1.84840173]
[1755882312389,0.42465,116580.0,116570.0,1.4430551]
[1755882312687,1.92465,116580.0,116570.0,1.84840173]
[1755882313199,1.92465,116580.0,116570.0,1.81763397]
[1755882313388,1.74037,116580.0,116570.0,2.06763397]
[1755882313687,1.74037,116580.0,116570.0,2.02142202]
[1755882313883,1.74037,116580.0,116570.0,2.06752873]
[1755882314275,1.87528,116580.0,116570.0,2.06752873]
[1755882314685,1.91412,116580.0,116570.0,2.06752873]
[1755882315695,1.91412,116580.0,116570.0,1.6621821]
[1755882315884,1.91412,116580.0,116570.0,2.06752873]
[1755882316189,1.91412,116580.0,116570.0,2.01966202]
[1755882316390,1.77921,116580.0,116570.0,1.22442861]
[1755882316586,1.91412,116580.0,116570.0,2.07094861]
[1755882316786,1.91412,116580.0,116570.0,2.07114861]
[1755882316986,0.4998965,116580.0,116570.0,2.07114861]
[1755882317292,0.41412,116580.0,116570.0,1.82202861]
[1755882318086,0.43185398,116580.0,116570.0,1.82202861]
[1755882319392,0.43185398,116580.0,116570.0,1.41668198]
[1755882319591,0.43185398,116580.0,116570.0,1.82202861]
[1755882319889,0.41212,116580.0,116570.0,1.82202861]
[1755882320291,0.41012,116580.0,116570.0,1.82202861]
[1755882321195,0.40912,116580.0,116570.0,1.82202861]
[1755882322187,0.40912,116580.0,116570.0,1.41668198]
[1755882322797,0.17534,116580.0,116570.0,1.82202861]
[1755882322999,0.06719,116580.0,116570.0,1.82202861]
[1755882323187,1.56073,116590.0,116580.0,0.0857765]
[1755882323394,0.06073,116590.0,116580.0,0.91372647]
[1755882323594,0.15442,116600.0,116590.0,0.0857692]
[1755882323895,0.18108,116600.0,116590.0,1.75819009]
[1755882324089,0.41409114,116600.0,116590.0,1.71215583]
[1755882324393,0.41409114,116600.0,116590.0,1.3068092]
[1755882324583,0.41409114,116600.0,116590.0,0.76614663]
[1755882324788,0.41409114,116600.0,116590.0,1.2228]
[1755882324985,0.41409114,116600.0,116590.0,1.62814663]
[1755882325202,0.41409114,116600.0,116590.0,0.76614663]
[1755882325391,0.66409114,116600.0,116590.0,0.3608]
[1755882325586,0.39637,116590.0,116580.0,0.2145]
[1755882325793,0.39637,116580.0,116570.0,0.52585279]
[1755882326100,0.41409114,116580.0,116570.0,0.42865279]
[1755882326291,0.41409114,116580.0,116570.0,0.70445942]
[1755882327002,0.41409114,116580.0,116570.0,0.65991279]
[1755882327299,0.41409114,116580.0,116570.0,1.06525942]
[1755882327502,0.41409114,116580.0,116570.0,1.15953153]
[1755882327907,0.41409114,116580.0,116570.0,0.668401]
[1755882328202,0.41409114,116580.0,116570.0,1.07374763]
[1755882328704,0.41409114,116580.0,116570.0,0.668401]
[1755882328903,0.41409114,116580.0,116570.0,1.07374763]
[1755882329304,0.41409114,116580.0,116570.0,1.15953153]
[1755882329604,0.07845114,116580.0,116570.0,1.40953153]
[1755882329792,0.03688,116590.0,116580.0,0.1829766]
[1755882329793,0.06073,116590.0,116580.0,0.1829766]
[1755882329992,0.06073,116590.0,116580.0,1.95766323]
[1755882330400,0.06073,116590.0,116580.0,0.6778366]
[1755882330598,0.18108,116590.0,116580.0,2.02718748]
[1755882330801,0.21796,116590.0,116580.0,2.02718748]
[1755882331297,0.18208,116590.0,116580.0,1.5530766]
[1755882331495,0.08839,116590.0,116580.0,2.02718748]
[1755882332003,0.06173,116590.0,116580.0,2.07322174]
[1755882332203,0.39837,116590.0,116580.0,0.72387086]
[1755882332399,0.39837,116590.0,116580.0,2.02898748]
[1755882332598,0.26346,116590.0,116580.0,1.5548766]
[1755882332901,0.39837,116590.0,116580.0,2.02898748]
[1755882333706,0.39837,116590.0,116580.0,1.5548766]
[1755882333909,0.4841392,116590.0,116580.0,1.46966]
[1755882334099,0.4841392,116590.0,116580.0,1.98980514]
[1755882334405,0.39837,116590.0,116580.0,1.98980514]
[1755882334595,0.4841391,116590.0,116580.0,1.51569426]
[1755882334794,0.4841391,116590.0,116580.0,0.63809426]
[1755882335001,0.4841391,116590.0,116580.0,1.47026]
[1755882335300,0.4841391,116590.0,116580.0,1.51629426]
[1755882336298,0.39837,116590.0,116580.0,2.07618164]
[1755882336699,0.39837,116590.0,116580.0,1.60207076]
[1755882336903,0.39837,116590.0,116580.0,2.07618164]
[1755882338507,0.39837,116590.0,116580.0,1.60207076]
[1755882339007,0.39837,116590.0,116580.0,2.07618164]
[1755882339408,0.39837,116590.0,116580.0,1.60207076]
[1755882339608,0.39837,116590.0,116580.0,2.07618164]
[1755882340110,0.39837,116590.0,116580.0,1.60207076]
[1755882340610,0.39837,116590.0,116580.0,2.07618164]
[1755882340912,0.39837,116590.0,116580.0,1.99040514]
[1755882341607,0.08939,116590.0,116580.0,2.07618134]
[1755882341814,1.5,116610.0,116590.0,0.3170289]
[1755882341815,0.06073,116600.0,116590.0,0.3170289]
[1755882342005,0.06073,116600.0,116590.0,1.19797404]
[1755882342309,0.06073,116600.0,116590.0,1.44797404]
[1755882343106,0.06073,116600.0,116590.0,0.97386316]
[1755882343306,0.06273,116600.0,116590.0,1.44797404]
[1755882343508,0.06273,116600.0,116590.0,0.97386316]
[1755882343709,0.15642,116600.0,116590.0,1.44797404]
[1755882343911,0.06273,116600.0,116590.0,1.44797404]
[1755882345608,0.51303315,116600.0,116590.0,0.84206]
[1755882345913,0.28280165,116600.0,116590.0,1.40193978]
[1755882346416,0.24592165,116600.0,116590.0,1.40193978]
[1755882347316,0.42634165,116600.0,116590.0,0.9278289]
[1755882347506,0.42634165,116600.0,116590.0,1.40193978]
[1755882347710,0.42634165,116600.0,116590.0,2.29245978]
[1755882348214,0.40871,116600.0,116590.0,2.33849404]
[1755882350317,0.40871,116600.0,116590.0,1.86438316]
[1755882350613,0.06273,116600.0,116590.0,2.33849404]
[1755882350810,0.002,116600.0,116590.0,2.33849404]
[1755882351207,0.06515,116600.0,116590.0,2.33849404]
[1755882351606,4e-05,116620.0,116610.0,0.4073742]
[1755882351811,0.01783329,116620.0,116610.0,2.13088508]
[1755882352114,4e-05,116620.0,116610.0,2.13088508]
[1755882352910,0.00604,116620.0,116610.0,2.13088508]
[1755882353311,0.2124568,116620.0,116610.0,2.13128508]
[1755882353516,0.2756068,116620.0,116610.0,2.13128508]
[1755882353713,0.3115568,116620.0,116610.0,2.13128508]
[1755882354213,0.2756068,116620.0,116610.0,2.13128508]
[1755882354408,0.18986,116620.0,116610.0,2.13128508]
[1755882354816,0.18986,116620.0,116610.0,1.6571742]
[1755882355018,0.09446,116620.0,116610.0,2.13128508]
[1755882355315,0.09446,116620.0,116610.0,2.12900508]
[1755882355813,0.06919,116620.0,116610.0,2.12900508]
[1755882356403,0.00604,116620.0,116610.0,2.12900508]
[1755882357620,0.00604,116620.0,116610.0,2.48980508]
[1755882358922,0.4908374,116640.0,116630.0,0.4073595]
[1755882359123,0.50862458,116640.0,116630.0,1.76611038]
[1755882359324,0.50862458,116640.0,116630.0,1.76579038]
[1755882360210,0.51262458,116640.0,116630.0,1.2916795]
[1755882360723,0.51862458,116640.0,116630.0,1.76579038]
[1755882361320,0.51862458,116640.0,116630.0,1.2916795]
[1755882361630,0.51862458,116640.0,116630.0,1.76579038]
[1755882361927,0.43288718,116640.0,116630.0,1.76579038]
[1755882362925,0.51861928,116640.0,116630.0,1.76579038]
[1755882363120,0.51261928,116640.0,116630.0,1.76579038]
[1755882363426,0.51261928,116640.0,116630.0,0.13338]
[1755882363727,0.87341928,116640.0,116630.0,0.27059]
[1755882364319,0.4948321,116640.0,116630.0,0.27059]
[1755882364626,0.51261172,116640.0,116630.0,0.27059]
[1755882364828,0.50861172,116640.0,116630.0,0.27059]
[1755882365027,0.51061172,116640.0,116630.0,0.27059]
[1755882365224,0.51061172,116640.0,116630.0,0.88147038]
[1755882365818,0.51061172,116640.0,116630.0,0.95077672]
[1755882366326,0.51061172,116640.0,116630.0,0.47666584]
[1755882366726,0.51061172,116640.0,116630.0,0.95077672]
[1755882367933,0.36614172,116640.0,116630.0,0.95077672]
[1755882368227,0.51061172,116640.0,116630.0,0.95077672]
[1755882368827,0.51061172,116640.0,116630.0,1.22241634]
[1755882369131,0.51061172,116640.0,116630.0,0.33989634]
[1755882370024,0.51061172,116640.0,116630.0,0.16139634]
[1755882370536,0.51061172,116640.0,116630.0,0.29860634]
[1755882370842,0.51061172,116640.0,116610.0,0.54904]
[1755882370843,2.4784426,116640.0,116610.0,0.54904]
[1755882371024,1.03239088,116630.0,116610.0,0.49801]
[1755882371337,1.9051,116620.0,116610.0,0.7171442]
[1755882371531,1.92287962,116620.0,116610.0,0.7681742]
[1755882371834,1.92287962,116620.0,116610.0,1.24228508]
[1755882372438,1.9051,116620.0,116610.0,1.24228508]
[1755882373132,1.76063,116620.0,116610.0,1.24228508]
[1755882373333,1.9051,116620.0,116610.0,1.24228508]
[1755882373838,1.9051,116620.0,116610.0,1.25081286]
[1755882374031,1.92289841,116620.0,116610.0,0.77670198]
[1755882374337,1.92289841,116620.0,116610.0,1.19978286]
[1755882374544,1.92289841,116620.0,116610.0,2.08238286]
[1755882375035,1.92289841,116620.0,116610.0,2.13341286]
[1755882375438,1.92289841,116620.0,116610.0,0.77770198]
[1755882375634,1.92289841,116620.0,116610.0,1.60827198]
[1755882375827,1.92289841,116620.0,116610.0,1.61027198]
[1755882376029,1.92289841,116620.0,116610.0,2.08438286]
[1755882376333,1.92289841,116620.0,116610.0,2.06531373]
[1755882377140,1.92289841,116620.0,116610.0,2.06555373]
[1755882378732,1.92289841,116620.0,116610.0,1.66106198]
[1755882378931,1.92289841,116620.0,116610.0,2.06555373]
[1755882380838,1.74247841,116620.0,116610.0,2.06555373]
[1755882381135,1.91724841,116620.0,116610.0,1.66106198]
[1755882381329,1.91724841,116620.0,116610.0,2.06555373]
[1755882381530,1.91724841,116620.0,116610.0,2.01452403]
[1755882382032,2.00299551,116620.0,116610.0,2.02188403]
[1755882382230,2.00299551,116620.0,116610.0,0.72867228]
[1755882382428,2.00299551,116620.0,116610.0,2.02160403]
[1755882382638,2.00299551,116620.0,116610.0,0.72867228]
[1755882382937,2.00299551,116620.0,116610.0,1.61687228]
[1755882383136,2.00299551,116620.0,116610.0,0.50570778]
[1755882383345,2.65748726,116620.0,116610.0,0.3638]
[1755882383638,2.25299551,116620.0,116610.0,0.4495544]
[1755882383939,2.65748726,116620.0,116610.0,0.3638]
[1755882384134,2.25299551,116620.0,116610.0,0.45635]
[1755882384439,2.25299551,116620.0,116610.0,0.3638]
[1755882384741,2.25299551,116620.0,116610.0,0.76829175]
[1755882384935,3.14079551,116620.0,116610.0,0.3638]
[1755882385136,3.54528726,116620.0,116610.0,0.3638]
[1755882385338,3.54528726,116620.0,116610.0,0.003]
[1755882385532,0.2408944,116610.0,116600.0,0.04603426]
[1755882385733,0.85544973,116610.0,116600.0,0.27852426]
[1755882386042,0.49464973,116610.0,116600.0,0.23249]
[1755882386442,0.49464973,116610.0,116600.0,0.09255]
[1755882386741,0.49464973,116610.0,116590.0,1.798625]
[1755882386939,0.49464973,116610.0,116600.0,0.09255]
[1755882387134,0.49464973,116610.0,116600.0,0.23349]
[1755882387334,0.49464973,116610.0,116600.0,0.09355]
[1755882387534,0.49464973,116610.0,116600.0,0.40549175]
[1755882387834,0.49464973,116610.0,116600.0,0.09355]
[1755882388143,0.49464973,116610.0,116600.0,0.63998175]
[1755882389038,0.49464973,116610.0,116600.0,0.23549]
[1755882389244,0.49464973,116610.0,116600.0,0.27732]
[1755882389445,0.40889533,116610.0,116600.0,0.68181175]
[1755882389740,1.42418708,116610.0,116600.0,0.003]
[1755882389946,0.39072,116590.0,116580.0,0.13438]
[1755882390147,0.39072,116590.0,116580.0,0.27432]
[1755882390436,0.39072,116590.0,116580.0,0.67881175]
[1755882390638,0.4764893,116590.0,116580.0,0.67881175]
[1755882390836,0.39072,116590.0,116580.0,0.76458835]
[1755882391345,0.39072,116590.0,116580.0,0.76758835]
[1755882391643,0.39072,116590.0,116580.0,0.77158835]
[1755882392144,0.39072,116590.0,116580.0,1.17821835]
[1755882392441,0.39072,116590.0,116580.0,1.18670894]
[1755882393543,0.39072,116590.0,116580.0,1.18370894]
[1755882393744,0.39072,116590.0,116580.0,1.18470894]
[1755882394238,0.39072,116590.0,116580.0,0.78021719]
[1755882394439,0.39072,116590.0,116580.0,1.18470894]
[1755882394740,0.39072,116590.0,116580.0,0.13638]
[1755882394741,0.4764893,116590.0,116580.0,0.13638]
[1755882394944,0.4764893,116590.0,116580.0,0.27632]
[1755882395137,0.3390793,116590.0,116580.0,0.72964175]
[1755882395335,0.39072,116590.0,116580.0,1.17621835]
[1755882395542,0.06081,116590.0,116580.0,2.07609835]
[1755882395732,0.39072,116600.0,116590.0,0.4089193]
[1755882395939,0.39072,116600.0,116590.0,0.7697193]
[1755882396246,0.25331,116600.0,116590.0,1.17421105]
[1755882396443,0.39072,116600.0,116590.0,1.17421105]
[1755882397138,0.39072,116600.0,116590.0,0.7697193]
[1755882397443,0.06081,116600.0,116590.0,1.17421105]
[1755882397649,0.40801667,116610.0,116600.0,0.4089121]
[1755882397948,0.40801667,116610.0,116600.0,2.07224385]
[1755882398446,0.27060667,116610.0,116600.0,2.1418019]
[1755882398842,0.19204667,116610.0,116600.0,2.3918019]
[1755882399040,0.19204667,116610.0,116600.0,1.9177521]
[1755882399247,0.19204667,116610.0,116600.0,2.3918019]
[1755882399642,0.27060667,116610.0,116600.0,2.3918019]
[1755882399844,0.40801667,116610.0,116600.0,1.4937619]
[1755882400047,0.40801667,116610.0,116600.0,2.3898419]
[1755882400649,0.40801667,116610.0,116600.0,2.3918419]
[1755882402448,0.40801667,116610.0,116600.0,0.63712]
[1755882402753,0.40801667,116610.0,116600.0,0.002]
[1755882402754,1.55233667,116610.0,116600.0,0.002]
[1755882402953,1.93153412,116610.0,116600.0,0.002]
[1755882403548,0.53900412,116610.0,116600.0,0.3620821]
[1755882403742,0.65089667,116610.0,116600.0,0.7717121]
[1755882403946,0.65109667,116610.0,116600.0,0.7230821]
[1755882404347,0.65109667,116610.0,116600.0,1.1971319]
[1755882405053,0.73685147,116610.0,116600.0,0.3622821]
[1755882405242,0.73685147,116610.0,116600.0,0.8363319]
[1755882405448,0.73685147,116610.0,116600.0,1.1971319]
[1755882405648,0.73685147,116610.0,116600.0,0.7230821]
[1755882407157,0.2172069,116580.0,116570.0,0.31067408]
[1755882407453,2.20535684,116580.0,116570.0,0.09384]
[1755882407651,2.2226317,116580.0,116560.0,0.23567]
[1755882407857,0.4692317,116560.0,116550.0,0.40263975]
[1755882408045,0.8300317,116560.0,116550.0,0.40263975]
[1755882408553,0.8300317,116560.0,116550.0,0.96248855]
[1755882408746,0.25315,116560.0,116550.0,0.96248855]
[1755882409258,0.4692317,116560.0,116550.0,0.96248855]
[1755882409558,0.38444,116560.0,116550.0,0.97048855]
[1755882409958,0.8310318,116560.0,116550.0,0.97048855]
[1755882410253,0.8320318,116560.0,116550.0,0.97648855]
[1755882410470,0.8320318,116560.0,116550.0,0.97668855]
[1755882411651,0.38544,116560.0,116550.0,1.04661904]
[1755882412455,0.74624,116560.0,116550.0,1.04661904]
[1755882414051,0.74624,116560.0,116550.0,0.34282049]
[1755882414355,0.74624,116560.0,116550.0,0.20246049]
[1755882414663,0.74624,116560.0,116550.0,0.41040337]
[1755882414960,0.99624,116560.0,116550.0,0.48773939]
[1755882415561,0.99624,116560.0,116550.0,0.35220939]
[1755882415763,0.99624,116560.0,116550.0,0.48773939]
[1755882415964,0.99624,116560.0,116550.0,0.49640614]
[1755882416266,0.99624,116560.0,116550.0,0.53662614]
[1755882416564,0.99624,116560.0,116550.0,0.57281614]
[1755882416866,1.0820316,116560.0,116550.0,0.57281614]
[1755882418652,1.0820316,116560.0,116550.0,0.52795939]
[1755882419163,1.0820316,116560.0,116550.0,0.39242939]
[1755882419364,1.0820316,116560.0,116550.0,0.32847939]
[1755882420259,0.86595,116560.0,116550.0,1.03819919]
[1755882420459,0.002,116560.0,116550.0,0.57256124]
[1755882420655,0.002,116560.0,116550.0,1.77066084]
[1755882421050,0.002,116560.0,116550.0,1.29661104]
[1755882421259,0.02633,116560.0,116550.0,1.29661104]
[1755882421461,0.38544,116560.0,116550.0,1.93829104]
[1755882421665,0.38544,116560.0,116550.0,1.93823104]
[1755882421861,0.38544,116560.0,116550.0,1.04655104]
[1755882422056,0.74624,116560.0,116550.0,1.04655104]
[1755882422260,0.74624,116560.0,116550.0,0.57250124]
[1755882422558,0.8320315,116560.0,116550.0,0.57250124]
[1755882422757,0.8320315,116560.0,116550.0,1.04655104]
[1755882422964,0.74624,116560.0,116550.0,1.04655104]
[1755882423353,0.002,116560.0,116550.0,2.13140084]
[1755882423760,0.002,116560.0,116550.0,1.65735104]
[1755882424667,0.002,116560.0,116550.0,1.29655104]
[1755882425364,0.002,116560.0,116550.0,1.04655104]
[1755882425659,0.11691,116560.0,116550.0,1.04655104]
[1755882425865,0.25515,116560.0,116550.0,1.93635104]
[1755882426165,0.06718,116560.0,116550.0,1.93635104]
[1755882426467,0.02633,116560.0,116550.0,1.93635104]
[1755882426765,0.002,116560.0,116550.0,1.93635104]
[1755882428569,0.002,116560.0,116550.0,3.02120084]
[1755882428867,0.59037486,116580.0,116570.0,0.2443342]
[1755882429067,0.72066486,116580.0,116570.0,0.954254]
[1755882429258,0.76151486,116580.0,116570.0,0.954254]
[1755882430563,0.01727486,116580.0,116570.0,2.454494]
[1755882430764,0.01727486,116580.0,116570.0,2.463494]
[1755882434168,0.01727486,116580.0,116570.0,1.9894442]
[1755882434473,0.01727486,116580.0,116570.0,2.463494]
[1755882434769,0.01727486,116580.0,116570.0,1.9894442]
[1755882434970,0.01727486,116580.0,116570.0,2.463494]
[1755882436171,0.01727486,116580.0,116570.0,2.50940492]
[1755882437365,0.685485,116600.0,116570.0,2.59518912]
[1755882437567,0.86205536,116600.0,116590.0,0.6286698]
[1755882437766,0.86205536,116600.0,116590.0,0.8673398]
[1755882437962,0.40306036,116600.0,116590.0,0.9531093]
[1755882438267,0.38486,116600.0,116590.0,0.9531093]
[1755882438668,0.59114667,116610.0,116600.0,0.2403821]
[1755882438861,0.37809667,116610.0,116600.0,0.9531019]
[1755882439065,0.37809667,116610.0,116600.0,1.8397419]
[1755882439266,0.37809667,116610.0,116600.0,1.3656921]
[1755882439475,0.37809667,116610.0,116600.0,1.8397419]
[1755882440073,0.37809667,116610.0,116600.0,1.8407419]
[1755882440478,0.37809667,116610.0,116600.0,1.8417419]
[1755882440671,0.37809667,116610.0,116600.0,1.3676921]
[1755882440872,0.46385147,116610.0,116600.0,1.8417419]
[1755882441065,0.86012147,116610.0,116600.0,1.3676921]
[1755882441268,0.86012147,116610.0,116600.0,1.8417419]
[1755882442277,0.86012147,116610.0,116600.0,1.85033264]
[1755882442773,0.86012147,116610.0,116600.0,0.96369264]